Cogmind - Beta 16 @@@ ROGUE MODE // 2025.12.02 @ 21:49:59 Player: Eddbot Result: Destroyed by H-61 Shepherd with Heavy Assault Cannon Performance ------------- Evolutions (3) 1500 Regions Visited (7) 1400 Robots Destroyed (17) 85 Value Destroyed (548) 548 Prototype IDs (2) 40 Alien Tech Used (0) 0 Bonus (525) 525 TOTAL SCORE: 4098 Bonus ------- Follower Combat Kills 25 Entered DSFs 500 Cogmind --------- Core Integrity 0/700 Matter 291/300 Energy 100/100 System Corruption 3% Temperature Cool (0) Movement Core (50) Location -7/DSF Parts ------- > --- POWER (3) -------- (None) > --- PROPULSION (3) --- (None) > --- UTILITY (4) ------ (None) > --- WEAPON (3) ------- Heavy Flail > --- INVENTORY (5) ---- Deuterium Engine Improved Deuterium Engine Hacking Suite High-powered Shotgun Flak Gun Peak State ------------ > --- POWER ------------ Heavy Ion Engine Deuterium Engine Light Nuclear Core > --- PROPULSION ------- Aluminum Leg Aluminum Leg Carbon-fiber Leg > --- UTILITY ---------- Medium Storage Unit Improved Targeting Computer Utility Shielding Medium Armor Plating > --- WEAPON ----------- Gatling Laser Advanced Beam Cannon Ripper > --- INVENTORY -------- Improved Ion Engine Deuterium Engine Improved Deuterium Engine Micro Nuclear Core Improved Targeting Computer Hacking Suite High-powered Shotgun Flak Gun [Rating: 33] Favorites ----------- Power Ion Engine Engine Ion Engine Power Core Light Nuclear Core Propulsion Carbon-fiber Leg Leg Carbon-fiber Leg Wheel Wheel Utility Utility Shielding Device Improved Terrain Scanner Storage Small Storage Unit Processor Improved Targeting Computer Protection Utility Shielding Weapon Gatling Laser Energy Gun Gatling Laser Energy Cannon Advanced Beam Cannon Ballistic Gun Flak Gun Special Weapon Mining Laser Impact Weapon Heavy Flail Slashing Weapon Ripper Build | -11 -10 -10 -9 -9 -8 -7 -7 ------- Run | Yrd Mat Min Mat Min Mat Fac DSF Slots Evolved 6 | . . . 2 . 2 2 . Power 2 | . . . 1 . . 1 . Propulsion 1 | . . . . . . 1 . Utility 2 | . . . 1 . 1 . . Weapon 1 | . . . . . 1 . . Parts Attached 35 | 10 . 1 2 7 10 1 4 Power 10 | 2 . . 1 1 2 1 3 Engine 9 | 2 . . 1 1 2 . 3 Core 1 | . . . . . . 1 . Reactor . | . . . . . . . . Propulsion 9 | 4 . 1 . 4 . . . Treads . | . . . . . . . . Leg 4 | . . . . 4 . . . Wheel 5 | 4 . 1 . . . . . Hover . | . . . . . . . . Flight . | . . . . . . . . Utility 8 | 2 . . 1 . 5 . . Device 2 | 1 . . . . 1 . . Storage 2 | 1 . . . . 1 . . Processor 2 | . . . . . 2 . . Hackware . | . . . . . . . . Protection 2 | . . . 1 . 1 . . Artifact . | . . . . . . . . Weapon 8 | 2 . . . 2 3 . 1 Energy Gun 2 | 1 . . . 1 . . . Energy Cannon 1 | . . . . . 1 . . Ballistic Gun 2 | 1 . . . 1 . . . Ballistic Cannon . | . . . . . . . . Launcher . | . . . . . . . . Special Weapon 1 | . . . . . 1 . . Impact Weapon 1 | . . . . . . . 1 Slashing Weapon 1 | . . . . . 1 . . Piercing Weapon . | . . . . . . . . Special Melee Weapon . | . . . . . . . . Unidentified Prototypes 2 | . . . . . 2 . . Parts Lost 16 | . . . . . 4 . 12 Power 2 | . . . . . . . 2 Propulsion 4 | . . . . . 1 . 3 Utility 6 | . . . . . 2 . 4 Weapon 4 | . . . . . 1 . 3 Highest Loss Streak 12 | . . . . . 2 . 12 To Critical Strikes . | . . . . . . . . Average Backups 7 | 2 7 8 7 7 7 5 8 Power 1 | . 1 1 . 1 1 1 4 Propulsion 2 | 2 5 4 4 2 1 . . Utility 1 | . 1 2 1 1 1 1 2 Weapon 2 | . . . 1 2 2 2 2 Tool/Special . | . . . . . . . . Unused Backups 10 | . . . . 3 1 . 6 Power 3 | . . . . . . . 3 Propulsion 2 | . . . . 2 . . . Utility 3 | . . . . . 1 . 2 Weapon 2 | . . . . 1 . . 1 Tool/Special . | . . . . . . . . Average Slot Usage (%) 96 | . 100 100 99 100 98 99 69 Engine 17 | . 14 14 21 22 18 15 12 Core 1 | . . . . . . 7 1 Leg 14 | . . . . 18 17 22 13 Wheel 5 | . 28 28 22 3 . . . Device 4 | . 14 14 11 11 2 . . Storage 9 | . 14 14 11 11 9 7 7 Processor 8 | . . . . . 13 7 5 Protection 9 | . . . 11 11 9 15 10 Energy Gun 8 | . 14 14 11 11 8 7 4 Energy Cannon 5 | . . . . . 8 7 5 Ballistic Gun 7 | . 14 14 11 11 7 . . Slashing Weapon 2 | . . . . . 2 7 6 Peak Build Rating 33 | 9 10 10 12 25 30 32 33 Average Rating 22 | 5 9 10 11 16 28 31 22 On Entrance 15 | . 9 10 10 12 25 27 32 Avg Prop Armor Cover (%) . | . . . . . . . . Naked Turns . | . . . . . . . . Heaviest Build 56 | 14 14 14 20 30 44 49 56 Greatest Support 35 | 32 20 26 26 30 30 35 35 Greatest Overweight (x) 11 | . . . . 1 2 1 11 Average Overweight (x) . | . . . . . 1 1 2 Largest Inventory Capacity 10 | 8 8 8 8 8 10 10 10 Average Capacity 8 | 7 8 8 8 8 8 10 9 Most Carried 10 | 7 8 8 8 8 9 6 10 Average Carried 7 | 2 7 8 7 7 7 5 8 Final Capacity 10 | 8 8 8 8 8 10 10 5 Final Carried 8 | 7 8 8 8 8 6 6 5 Class Distribution -------------------- 45% | Mutant 30% | Gunner 17% | Scavenger-Mutant 6% | Scavenger-Gunner Dominant Class ---------------- Mutant | -10/Materials Mutant | -10/Mines Mutant | -9/Materials Mutant | -9/Mines Gunner | -8/Materials Scavenger-Mutant | -7/Factory Mutant | -7/DSF Resources | -11 -10 -10 -9 -9 -8 -7 -7 ----------- Run | Yrd Mat Min Mat Min Mat Fac DSF Matter Collected 654 | 291 . 42 . 118 195 . 8 Remotely . | . . . . . . . . Salvage Created 696 | 130 . 24 . 92 450 . . Parts 35 | 8 . 3 . 5 19 . . Haulers Intercepted 1 | . . . . . 1 . . Recyclers Shooed 1 | . . . . . 1 . . Parts Field Recycled . | . . . . . . . . Retrieved Matter . | . . . . . . . . Parts Self-Destructed . | . . . . . . . . Prevented . | . . . . . . . . Parts Restored . | . . . . . . . . Kills | -11 -10 -10 -9 -9 -8 -7 -7 ------- Run | Yrd Mat Min Mat Min Mat Fac DSF Combat Hostiles Destroyed 13 | . . 2 . 2 9 . . Melee 2 | . . . . . 2 . . Guns 9 | . . 2 . 2 5 . . Cannons 2 | . . . . . 2 . . Classes Destroyed 8 | 2 . 1 . 1 4 . . Tunneler 2 | 2 . . . . . . . Hauler 1 | . . . . . 1 . . Recycler 1 | 1 . . . . . . . Swarmer 2 | . . 2 . . . . . Grunt 6 | . . . . 2 4 . . Duelist 1 | . . . . . 1 . . Sentry 3 | . . . . . 3 . . Hunter 1 | . . . . . 1 . . Best Kill Streak 3 | 2 . 2 . 2 3 . . Combat Bots Only 2 | . . 2 . 2 2 . . Max Kills in Single Turn 1 | 1 . 1 . 1 1 . . Gunslinging . | . . . . . . . . Exploded . | . . . . . . . . Melee 1 | . . . . . 1 . . Uniques/NPCs Destroyed . | . . . . . . . . Combat | -11 -10 -10 -9 -9 -8 -7 -7 -------- Run | Yrd Mat Min Mat Min Mat Fac DSF Hostile Shots Fired 150 | . . 15 16 3 40 . 76 Missed 32 | . . 5 3 1 9 . 14 Hits 118 | . . 10 13 2 31 . 62 Projectile 118 | . . 10 13 2 31 . 62 Critical Strikes 4 | . . 1 . . . . 3 Damage Taken 2622 | . . 81 154 30 673 . 1684 Core 917 | . . 9 . . 208 . 700 Absorbed by Shields . | . . . . . . . . Redirected to Shielding 61 | . . . 3 . 34 . 24 Core Remaining (%) 89 | 100 . 96 . 100 62 . . Volleys Fired 39 | 8 . 4 3 3 21 . . Largest 3 | 2 . 2 2 2 3 . . Hottest 176 | 60 . 60 60 60 176 . . Shots Fired 85 | 16 . 8 6 6 49 . . Gun 66 | 16 . 8 6 6 30 . . Cannon 17 | . . . . . 17 . . Launcher . | . . . . . . . . Special 2 | . . . . . 2 . . Kinetic 32 | 8 . 4 3 3 14 . . Thermal 53 | 8 . 4 3 3 35 . . Explosive . | . . . . . . . . Electromagnetic . | . . . . . . . . Robot Hit Streak 8 | 5 . 2 3 7 8 . . Robot Miss Streak 7 | 2 . 2 2 . 7 . . Penetration Max . | . . . . . . . . Secondary Targets . | . . . . . . . . Shots Hit Robots 60 | 9 . 3 2 6 37 . 3 Core Hits 39 | 4 . 2 . 5 27 . 1 Critical Kills . | . . . . . . . . Critical Parts Destroyed . | . . . . . . . . Critical Strikes 1 | . . . . . 1 . . Sever 1 | . . . . . 1 . . Melee Attacks 12 | . . . . . 7 . 5 Impact 4 | . . . . . . . 4 Slashing 8 | . . . . . 7 . 1 Piercing . | . . . . . . . . Sneak Attacks . | . . . . . . . . Combat Hostiles . | . . . . . . . . Follow-up Attacks . | . . . . . . . . Damage Inflicted 1197 | 106 . 35 37 68 830 . 121 Guns 686 | 106 . 35 36 68 441 . . Cannons 164 | . . . . . 164 . . Explosions . | . . . . . . . . Melee 346 | . . . . . 225 . 121 Ramming 1 | . . . 1 . . . . Kinetic 298 | 54 . 13 12 38 181 . . Thermal 552 | 52 . 22 24 30 424 . . Explosive . | . . . . . . . . Electromagnetic . | . . . . . . . . Impact 101 | . . . . . . . 101 Slashing 245 | . . . . . 225 . 20 Piercing . | . . . . . . . . Highest Corruption 3 | . . . . . 1 3 3 Average Corruption 2 | . . . . . 1 2 3 Corruption Purged . | . . . . . . . . Corruption Blocked . | . . . . . . . . Effects 5 | . . . . . . 3 2 Message Errors 1 | . . . . . . 1 . Matter Fused 1 | . . . . . . . 1 Heat Flow Errors 1 | . . . . . . 1 . Energy Discharges 1 | . . . . . . 1 . Alerts 1 | . . . . . . . 1 Overload Shots . | . . . . . . . . Overflow Damage 41 | . . . . . 41 . . Projectiles 6 | . . . . . 6 . . Explosions . | . . . . . . . . Melee 35 | . . . . . 35 . . Knockbacks 1 | . . . . . . . 1 Impact 1 | . . . . . . . 1 Kinetic . | . . . . . . . . Secondary . | . . . . . . . . Self-Inflicted Damage . | . . . . . . . . Shots . | . . . . . . . . Rammed 1 | . . . 1 . . . . Targets Rammed 1 | . . . 1 . . . . Kicked . | . . . . . . . . Crushed . | . . . . . . . . Highest Temperature 398 | . . . 18 36 398 150 . Average Temperature 103 | . . . 9 21 116 78 . Received Heat Transfer 462 | . . . 75 18 162 . 207 Effects 4 | . . . . . 4 . . Shutdowns 1 | . . . . . 1 . . Interference 3 | . . . . . 3 . . Siege Activations . | . . . . . . . . Martial Activations . | . . . . . . . . Shielding Activations . | . . . . . . . . Robots Disrupted . | . . . . . . . . Combat Hostiles . | . . . . . . . . Robots Corrupted . | . . . . . . . . Combat Hostiles . | . . . . . . . . Parts Fried . | . . . . . . . . Impact Corruptions . | . . . . . . . . Robots Melted . | . . . . . . . . Combat Hostiles . | . . . . . . . . Parts Melted 1 | . . . . . 1 . . Heat Transferred 1196 | 125 . 50 50 75 896 . . Parts Sabotaged . | . . . . . . . . Parts Stolen . | . . . . . . . . Parts Stripped . | . . . . . . . . Power Chain Reactions . | . . . . . . . . Alert | -11 -10 -10 -9 -9 -8 -7 -7 ------- Run | Yrd Mat Min Mat Min Mat Fac DSF Maximum Alert Level . | . . . . . . . . Low Security (%) 100 | 100 100 100 100 100 100 100 100 Level 1 . | . . . . . . . . Level 2 . | . . . . . . . . Level 3 . | . . . . . . . . Level 4 . | . . . . . . . . Level 5 . | . . . . . . . . High Security . | . . . . . . . . Max Security . | . . . . . . . . Peak Influence 88 | 5 . 40 45 67 88 29 9 Initial 29 | . . . 11 17 . 29 9 Average 17 | . . 24 7 28 26 5 4 Influence Increases 502 | 15 . 40 68 50 315 14 . Destroy 0b10 Robot/C 280 | . . 40 20 40 180 . . Destroy 0b10 Robot/NC 20 | 15 . . . . 5 . . Destroy Leader 72 | . . . . 10 62 . . Allied During Kill 1 | . . . 1 . . . . Successful Hack 53 | . . . 2 . 37 14 . Destroy Structure 1 | . . . . . 1 . . Partial Spotted 15 | . . . . . 15 . . Lose Combat Pursuer 60 | . . . 45 . 15 . . Influence Decreases 502 | 15 . 10 53 95 250 65 14 Entered New Map 88 | . . . 19 28 . 36 5 Time Decay 345 | 15 . 10 14 67 210 29 . Lost Part 49 | . . . . . 40 . 9 Lost Ally 20 | . . . 20 . . . . Squads Dispatched 6 | . . . . 1 2 1 2 Investigation 1 | . . . . 1 . . . Extermination . | . . . . . . . . Reinforcement 5 | . . . . . 2 1 2 Assault . | . . . . . . . . Garrison . | . . . . . . . . Intercept . | . . . . . . . . Searches Triggered . | . . . . . . . . Construction Impeded . | . . . . . . . . Haulers Reinforced . | . . . . . . . . Active Scanning Responses . | . . . . . . . . Cargo Convoy Interrupts . | . . . . . . . . Stealth | -11 -10 -10 -9 -9 -8 -7 -7 --------- Run | Yrd Mat Min Mat Min Mat Fac DSF Distress Signals 1 | . . . . . 1 . . Communications Jammed . | . . . . . . . . Distress Signals . | . . . . . . . . Times Spotted 39 | . 1 3 11 1 20 . 3 Peak Tracking Total 7 | . 1 3 7 1 5 . 3 Tactical Retreats 2 | . . . 1 . 1 . . Traps | -11 -10 -10 -9 -9 -8 -7 -7 ------- Run | Yrd Mat Min Mat Min Mat Fac DSF Traps Triggered 2 | . . . . . . 2 . Indirectly . | . . . . . . . . Trap Hack Attempts . | . . . . . . . . Triggered . | . . . . . . . . Disarmed . | . . . . . . . . Reprogrammed . | . . . . . . . . Reused . | . . . . . . . . Traps Extracted . | . . . . . . . . Installed . | . . . . . . . . Triggered . | . . . . . . . . Machines | -11 -10 -10 -9 -9 -8 -7 -7 ---------- Run | Yrd Mat Min Mat Min Mat Fac DSF Machines Disabled . | . . . . . . . . Max in Single Turn . | . . . . . . . . Machines Repaired . | . . . . . . . . Machines Dismantled . | . . . . . . . . Machines Sabotaged . | . . . . . . . . Overloaded Fab Kills . | . . . . . . . . Hacking | -11 -10 -10 -9 -9 -8 -7 -7 --------- Run | Yrd Mat Min Mat Min Mat Fac DSF Machines Accessed 13 | . 2 . 1 1 7 2 . Terminals 11 | . 2 . 1 . 6 2 . Fabricators . | . . . . . . . . Repair Stations . | . . . . . . . . Recycling Units . | . . . . . . . . Scanalyzers 1 | . . . . . 1 . . Garrison Access . | . . . . . . . . Total Hacks 37 | . 6 . 2 1 23 5 . Successful 24 | . 2 . 2 1 16 3 . Failed 13 | . 4 . . . 7 2 . Catastrophic 4 | . 2 . . . 2 . . Database Lockouts . | . . . . . . . . Manual . | . . . . . . . . Terminals 31 | . 6 . 2 . 18 5 . Fabricators . | . . . . . . . . Repair Stations . | . . . . . . . . Recycling Units . | . . . . . . . . Scanalyzers 5 | . . . . . 5 . . Garrison Access . | . . . . . . . . Terminal Hacks 20 | . 2 . 2 1 12 3 . Record 11 | . . . 2 . 9 . . Part Schematic 1 | . . . . . . 1 . Open Door 1 | . . . . 1 . . . Open DSF 1 | . . . . . . 1 . Emergency Access Points 1 | . 1 . . . . . . Dispatch Records 1 | . 1 . . . . . . Registered Components 1 | . . . . . . 1 . Zone Layout 3 | . . . . . 3 . . Fabricator Hacks . | . . . . . . . . Repair Station Hacks . | . . . . . . . . Recycling Unit Hacks . | . . . . . . . . Scanalyzer 4 | . . . . . 4 . . Insert Component 1 | . . . . . 1 . . Analyze 1 | . . . . . 1 . . Retrieve Study 2 | . . . . . 2 . . Garrison Access Hacks . | . . . . . . . . Unauthorized Hacks . | . . . . . . . . Terminals . | . . . . . . . . Fabricators . | . . . . . . . . Repair Stations . | . . . . . . . . Recycling Units . | . . . . . . . . Scanalyzers . | . . . . . . . . Garrison Access . | . . . . . . . . Data Cores Recovered . | . . . . . . . . Used . | . . . . . . . . Hacking Detections 9 | . 2 . 1 . 5 1 . Full Trace Events . | . . . . . . . . Feedback Events . | . . . . . . . . Feedback Blocked . | . . . . . . . . Robot Schematics Acquired . | . . . . . . . . Robots Built . | . . . . . . . . Authchips . | . . . . . . . . Time . | . . . . . . . . Total Robot Build Rating . | . . . . . . . . Part Schematics Acquired 2 | . . . . . 1 1 . Parts Built . | . . . . . . . . Authchips . | . . . . . . . . Time . | . . . . . . . . Total Part Build Rating . | . . . . . . . . Part Studies Acquired 1 | . . . . . 1 . . Parts Repaired . | . . . . . . . . Time . | . . . . . . . . Parts Recycled . | . . . . . . . . Recycled Matter . | . . . . . . . . Retrieved Matter . | . . . . . . . . Retrieved Components . | . . . . . . . . Parts Scanalyzed 1 | . . . . . 1 . . Part Schematics Acquired 1 | . . . . . 1 . . Parts Damaged . | . . . . . . . . Bothacking | -11 -10 -10 -9 -9 -8 -7 -7 ------------ Run | Yrd Mat Min Mat Min Mat Fac DSF Used RIF Installer . | . . . . . . . . Robots Hacked . | . . . . . . . . Non-combat . | . . . . . . . . Combat . | . . . . . . . . Robot Hacks Applied . | . . . . . . . . Relay Couplers Released . | . . . . . . . . Fabnet Peak Effective % . | . . . . . . . . Robots Rewired . | . . . . . . . . Allies Hacked . | . . . . . . . . Hacks Repelled . | . . . . . . . . Allies | -11 -10 -10 -9 -9 -8 -7 -7 -------- Run | Yrd Mat Min Mat Min Mat Fac DSF Total Allies 1 | . . 1 . . . . . Largest Group 1 | . . 1 1 . . . . Highest-Rated Group 31 | . . 31 31 . . . . Highest-Rated Ally 31 | . . 31 31 . . . . Total Orders . | . . . . . . . . Ally Attacks 8 | . . . 8 . . . . Total Damage 147 | . . . 147 . . . . Kills 1 | . . . 1 . . . . Allies Corrupted . | . . . . . . . . Allies Melted . | . . . . . . . . Intel | -11 -10 -10 -9 -9 -8 -7 -7 ------- Run | Yrd Mat Min Mat Min Mat Fac DSF Active Infowar (turns) 670 | 32 99 36 138 172 193 . . Terrain 670 | 32 99 36 138 172 193 . . Robot Analysis Total . | . . . . . . . . Derelict Logs Recovered . | . . . . . . . . Drone Launches . | . . . . . . . . Drone Recoveries . | . . . . . . . . Exploration | -11 -10 -10 -9 -9 -8 -7 -7 ------------- Run | Yrd Mat Min Mat Min Mat Fac DSF Turns Passed 1697 | 132 99 36 138 172 777 234 109 Spaces Moved 984 | 83 123 23 135 101 359 124 36 Core 10 | 2 . . . . . . 8 Treads . | . . . . . . . . Legs 608 | . . . . 97 359 124 28 Wheels 366 | 81 123 23 135 4 . . . Hover . | . . . . . . . . Flight . | . . . . . . . . Fastest Speed 50 | 50 80 80 90 90 175 185 50 Average Speed 146 | 98 80 83 90 143 184 185 237 Slowest Speed 600 | 100 80 90 90 190 245 185 600 Overloaded Moves . | . . . . . . . . Propulsion Burnouts . | . . . . . . . . Robots Hopped . | . . . . . . . . Potential Cave-ins . | . . . . . . . . Cave-ins Triggered 1 | . . . . . 1 . . Exploration Rate (%) 20 | 4 26 4 18 26 37 6 41 Regions Visited 7 Branch Regions 2 Pre-discovered Areas . | . . . . . . . . Known Exits Taken 1 | . . . . . . 1 . Unknown Exits Taken 6 | 1 1 1 1 1 1 . . Scrap Searched 1 | . . . . 1 . . . Spaces Dug 2 | . . . . . 2 . . Terrain Destroyed 2 | . . . . . 2 . . Melee 1 | . . . . . 1 . . Projectile 1 | . . . . . 1 . . AOE . | . . . . . . . . Terrain Rammed . | . . . . . . . . Walls Destroyed . | . . . . . . . . Machines Disabled . | . . . . . . . . Actions | -11 -10 -10 -9 -9 -8 -7 -7 --------- Run | Yrd Mat Min Mat Min Mat Fac DSF Total 1138 | 115 123 31 144 126 420 128 51 Wait 12 | 1 . 2 1 1 7 . . Move 977 | 82 122 22 134 100 358 123 36 Hop . | . . . . . . . . Pick Up 38 | 14 1 1 2 6 7 2 5 Fast Attach 2 | . . . . . 2 . . Attach 17 | 7 . . 2 . 5 2 1 Detach . | . . . . . . . . Swap 22 | 3 . 1 1 7 6 1 3 Drop 18 | . . 1 . 9 7 . 1 Fire 39 | 8 . 4 3 3 21 . . Melee 12 | . . . . . 7 . 5 Ram 1 | . . . 1 . . . . Kick . | . . . . . . . . Crush . | . . . . . . . . Escape Stasis . | . . . . . . . . Rewire . | . . . . . . . . Trap . | . . . . . . . . Miscellaneous . | . . . . . . . . Route ------- -11/Scrapyard -10/Materials -10/Mines -9/Materials -9/Mines -8/Materials -7/Factory -7/DSF History --------- Turn | Location | Event 18 | -11/Scrapyard | Discovered new exit (range 16) 133 | -11/Scrapyard | Entered Materials 226 | -10/Materials | Discovered new exit (range 8) 232 | -10/Materials | Entered Mines 235 | -10/Mines | Received a Mining Laser from a helpful Derelict 259 | -10/Mines | Discovered new exit (range 4) 268 | -10/Mines | Entered Materials 268 | -9/Materials | Accompanied by 1 ally 268 | -9/Materials | Evolved 2 slots: Power x1, Utility x1 309 | -9/Materials | Build established: Mutant 386 | -9/Materials | Discovered new exit (range 16) 406 | -9/Materials | Entered Mines 443 | -9/Mines | Found a hidden stash of uninstalled traps 468 | -9/Mines | A weapon hastily lodged in a ceiling crevice suddenly fell to the ground 490 | -9/Mines | Met a Derelict shopkeep closing up shop 552 | -9/Mines | Discovered new exit (range 15) 578 | -9/Mines | Entered Materials 578 | -8/Materials | Evolved 2 slots: Utility x1, Weapon x1 923 | -8/Materials | Build established: Gunner 1236 | -8/Materials | Crushed by falling debris 1333 | -8/Materials | Discovered new exit (range 11) 1355 | -8/Materials | Entered Factory 1355 | -7/Factory | Evolved 2 slots: Power x1, Propulsion x1 1587 | -7/Factory | Identified exit to DSF 1589 | -7/Factory | Entered DSF 1621 | -7/DSF | Additional patrols routed to DSF 1685 | -7/DSF | Core integrity fell below 50% 1694 | -7/DSF | Core integrity fell below 20% 1698 | -7/DSF | Destroyed by H-61 Shepherd with Heavy Assault Cannon Last Messages --------------- 01670_ Knocked back. 01672_ Penetrated by Slug. 01677_ Imp. Targeting Computer destroyed. 01679_ Deuterium Engine destroyed. 01681_ Penetrated by Slug. 01682_ System corrupted: Matter fused (-7). 01682_ H-61 Shepherd calls for reinforcements. 01682_ ALERT: Hostile activity reported, dispatching reinforcements to area. 01682_ Ripper destroyed. 01682_ Knocked back. 01685_ Penetrated by Slug. 01688_ Knocked back. 01688_ Penetrated by Slug. 01688_ Critical hit (Burn: +37). 01691_ Slug penetrates Wall. 01694_ Med. Storage Unit destroyed. 01694_ Penetrated by Slug. 01696_ X-62 Marksman knocked back. 01697_ Penetrated by Slug. Map ----- +----------------------------------------------------+ | ?????????????????????????????????????????????? | | ?????????????????????????????????????????????? | | ?????????????????????????????????????????????? | | ??????????????????????????????????##?????????? | | ?????????????????????????????????#""?????????? | | ?????????????????????????????????#"#?????????? | | ????????????????????????????????##"####??????? | | ????????????????????????#???###?#"""""#??????? | | ?????????????????? **^!!#***# ##"""""#??????? | | ?????????????????? * ""##"????? | | ?????????????????? """""????? | | ??????????????????????###***#**## ""###????? | | ????????????????????????????#???## ###??????? | | ???????????????????????????????### ##???????? | | ???????????????????????????????#** #???????? | | ???????????????????????????????#** #???????? | | ????????????????###????????????### ##???????? | | ????????????????#]] ???????????#** *#???????? | | ????????????????#]] ???????????#* *#???????? | | ?????????????????]] ??????????#** *#???????? | | ??????????????????# ??########## ###??????? | | ?????????????????## #?#!!!# ## [[#??????? | | ??????????? #!!!##a a##!!!# ## [[#??????? | | ?????????? x !!##?????? | | ?????????? %!H % !!;#?????? | | ?????????? *x*@* % %%% *!!; #????? | | ?????????????????#a =%##!!!%///##% %"#?????? | | ?????????????????##?????#!!!#/ /## ##?????? | | ????????????????????????##%####;#######??????? | | ?????????????????????????###????#????????????? | | ?????????????????????????????????????????????? | | ?????????????????????????????????????????????? | | ?????????????????????????????????????????????? | | ?????????????????????????????????????????????? | | ?????????????????????????????????????????????? | | ?????????????????????????????????????????????? | | ?????????????????????????????????????????????? | | ?????????????????????????????????????????????? | | ?????????????????????????????????????????????? | | ?????????????????????????????????????????????? | | ?????????????????????????????????????????????? | | ?????????????????????????????????????????????? | | ?????????????????????????????????????????????? | | ?????????????????????????????????????????????? | | ?????????????????????????????????????????????? | | ?????????????????????????????????????????????? | | ?????????????????????????????????????????????? | | ?????????????????????????????????????????????? | | ?????????????????????????????????????????????? | | ?????????????????????????????????????????????? | +----------------------------------------------------+ Best States ------------- Heat Dissipation 34 Energy Generation 32 Energy Capacity 630 Matter Stores 300 Matter Capacity 300 Sight Range 16 Terrain Scan Range 16 Terrain Scan Density 10 Armor Coverage 225 Utility Shielding 33 Evasion (%) 55 Targeting Accuracy 11 Item Schematics ----------------- Hacking Suite | -8/Materials | Scanalyzed Transmission Jammer | -7/Factory | Hacked Robot Schematics ------------------ None Fabricated ------------ Nothing Repaired ---------- Nothing Studied --------- Carbon-fiber Leg | -8/Materials | Hacked Alien Tech Used ----------------- None Achievements -------------- For Emergencies Only Heavy Suspicion I Have A Map? Item+ There's More Where That Came From Challenges ------------ None Game ------ Seed RagnarokPlexusProtomatter Manual? 0 Play Time 00:28:08 Cumulative 36.7 hours Start 2025.12.02 @ 21:23:03 End 2025.12.02 @ 21:49:59 Sessions 1 Manual Loads 0 Difficulty Rogue Special Mode None Game No. 82 Rogue 82 Adventurer 0 Explorer 0 Win Type - Total 0 Types 0/0/0/0/0/0/0/0/0/0 Lore% 15 Gallery% 23 Achievement% 14 Wizard Run 0 Options --------- Layout 1 ASCII 0 Keyboard 0 Movement Mouse Keybinds 0 Fullscreen 1 Font 24/Smallcaps Map View 50x35 Zoom Use 0% Tactical HUD 1 Map Filters NONE Filters NONE Steam 1 RUN: 51eebde6-fe0d-4612-8ee7-935817dea2b0